bitfinex-derivatives/quotes_SOLF0:USTF0_20250310
["timestamp","ask_amount","ask_price","bid_price","bid_amount"]
[1741639606492,0.05385771,117.62,117.53,63.2549135]
[1741639606691,54.7122135,117.66,117.55,54.7122135]
[1741639606898,52.5237,117.67,117.57,54.7122135]
[1741639607097,44.02,117.67,117.56,324.46]
[1741639607296,54.7122135,117.65,117.56,280.44]
[1741639607490,98.7322135,117.67,117.56,280.44]
[1741639607692,0.06144419,117.62,117.6,8.5083]
[1741639607895,99.2322135,117.67,117.57,44.52]
[1741639608100,0.06411074,117.62,117.6,0.05334464]
[1741639608497,8.5076,117.61,117.6,0.05334464]
[1741639608697,0.05725104,117.62,117.6,0.05334464]
[1741639609104,8.5023,117.69,117.61,44.8]
[1741639609302,4.2087,117.68,117.63,8.5056]
[1741639609498,4.2087,117.68,117.61,53.0949]
[1741639609696,4.2087,117.68,117.58,99.9922135]
[1741639609891,4.2087,117.68,117.59,4.274]
[1741639610200,54.7122135,117.6,117.56,1.70125893]
[1741639610705,0.06147389,117.59,117.57,0.06461343]
[1741639611595,100.6522135,117.66,117.58,45.96]
[1741639612802,0.06287031,117.63,117.61,0.05669554]
[1741639613901,11.80157195,117.67,117.62,46.38]
[1741639615005,0.05574926,117.66,117.62,46.38]
[1741639615198,0.05574926,117.66,117.64,8.5048]
[1741639615403,0.05574926,117.66,117.62,46.38]
[1741639615606,11.80157195,117.67,117.64,0.05720888]
[1741639616000,129.81729153,117.68,117.64,0.05720888]
[1741639616400,8.5033,117.67,117.64,0.05720888]
[1741639616802,0.06255441,117.67,117.64,0.05720888]
[1741639618004,8.504,117.66,117.64,0.05720888]
[1741639618207,0.06255441,117.67,117.64,0.05720888]
[1741639619604,0.06255441,117.67,117.66,8.5039]
[1741639619800,8.3691,117.74,117.64,0.05720888]
[1741639620206,8.5007,117.71,117.68,8.5025]
[1741639620406,8.3691,117.74,117.66,46.16]
[1741639620609,8.4985,117.74,117.7,8.5004]
[1741639620811,4.0176,117.75,117.66,46.16]
[1741639621011,0.05748745,117.73,117.71,0.0595512]
[1741639621205,101.7122135,117.72,117.62,284.9151]
[1741639621413,101.7122135,117.72,117.62,4.3551]
[1741639621414,54.7122135,117.68,117.62,4.3551]
[1741639621617,54.7122135,117.66,117.58,280.54]
[1741639621816,54.7122135,117.66,117.58,284.5652]
[1741639622011,55.6119,117.67,117.58,4.0252]
[1741639622216,55.6119,117.67,117.6,8.508]
[1741639622217,8.5061,117.64,117.6,8.508]
[1741639622512,0.05412906,117.64,117.61,0.05490082]
[1741639622715,8.55972906,117.64,117.61,0.05490082]
[1741639622918,0.05412906,117.64,117.61,0.05490082]
[1741639623220,8.5068,117.62,117.61,0.05490082]
[1741639623423,0.05412906,117.64,117.61,0.05490082]
[1741639624117,47.62,117.74,117.61,335.26711432]
[1741639624415,54.7122135,117.7,117.62,4.0252]
[1741639624719,54.7122135,117.7,117.63,47.76]
[1741639625019,4.1114,117.73,117.63,102.4722135]
[1741639625216,0.05974078,117.68,117.65,0.05757111]
[1741639625512,0.05974078,117.68,117.64,4.2786]
[1741639625817,0.05974078,117.68,117.65,0.05419179]
[1741639626214,35.40471587,117.72,117.65,0.05419179]
[1741639626419,35.40471587,117.72,117.67,8.5032]
[1741639626613,35.40471587,117.72,117.67,47.86]
[1741639626820,35.40471587,117.72,117.69,8.5012]
[1741639627118,141.06159924,117.74,117.67,47.86]
[1741639627321,0.05686858,117.72,117.69,0.06347576]
[1741639628017,0.05686858,117.72,117.69,8.56477576]
[1741639628318,0.05686858,117.72,117.69,0.06347576]
[1741639628717,0.05686858,117.72,117.69,4.34457576]
[1741639628908,233.07301426,117.75,117.69,59.05678926]
[1741639629116,35.14146001,117.78,117.69,59.05678926]
[1741639629310,54.7122135,117.77,117.69,8.47927576]
[1741639629515,54.7122135,117.77,117.69,8.4158]
[1741639629818,35.14146001,117.78,117.69,8.4158]
[1741639630014,0.05775439,117.74,117.72,0.06315751]
[1741639630617,0.05775439,117.74,117.73,8.4989]
[1741639630812,35.14146001,117.78,117.72,0.06315751]
[1741639631321,8.4971,117.76,117.72,8.56255751]
[1741639631523,35.14146001,117.78,117.72,0.06315751]
[1741639631816,54.7122135,117.81,117.72,0.06315751]
[1741639632013,0.0543892,117.76,117.72,0.06315751]
[1741639632212,8.5515892,117.76,117.73,0.05686826]
[1741639632415,0.0543892,117.76,117.73,0.05686826]
[1741639632618,54.7122135,117.75,117.65,47.82]
[1741639632923,54.7122135,117.72,117.64,56.3254]
[1741639633313,54.7122135,117.72,117.64,47.82]
[1741639633513,8.5033,117.67,117.64,56.3249]
[1741639633714,54.7122135,117.72,117.64,47.82]
[1741639633920,0.05695254,117.67,117.64,47.87622626]
[1741639634219,8.56055254,117.67,117.64,56.3251]
[1741639634420,0.05695254,117.67,117.64,0.06244851]
[1741639634621,8.5047,117.65,117.64,0.06244851]
[1741639634922,0.05695254,117.67,117.64,0.06244851]
[1741639635315,8.5047,117.65,117.64,0.06244851]
[1741639635922,0.05695254,117.67,117.64,0.06244851]
[1741639637024,8.504,117.66,117.64,0.06244851]
[1741639637322,0.05695254,117.67,117.64,0.06244851]
[1741639638218,8.5047,117.65,117.64,0.06244851]
[1741639638724,8.5043,117.66,117.64,0.06244851]
[1741639639026,0.05695254,117.67,117.64,0.06244851]
[1741639639522,0.05695254,117.67,117.65,8.5043]
[1741639639817,43.65206001,117.73,117.64,0.06244851]
[1741639640025,39.47246001,117.73,117.67,8.5031]
[1741639640221,4.331,117.73,117.64,8.5696]
[1741639640422,89.85367351,117.74,117.64,8.5696]
[1741639640619,89.85367351,117.74,117.68,8.5021]
[1741639640822,8.4994,117.73,117.67,48.8]
[1741639641022,0.06257673,117.72,117.7,0.06272493]
[1741639641420,8.5003,117.71,117.7,0.06272493]
[1741639641623,0.06257673,117.72,117.7,0.06272493]
[1741639642524,192.27593356,117.79,117.71,48.74]
[1741639642825,54.7122135,117.77,117.71,57.2399]
[1741639643125,8.4972,117.76,117.71,48.74]
[1741639643322,8.4972,117.76,117.72,8.4993]
[1741639643523,8.4972,117.76,117.71,48.74]
[1741639643730,0.06208234,117.75,117.73,0.05388965]
[1741639644025,128.85202006,117.79,117.73,0.05388965]
[1741639644716,183.56423356,117.79,117.73,0.05388965]
[1741639644922,54.7122135,117.79,117.73,0.05388965]
[1741639645123,0.06250126,117.77,117.73,0.05388965]
[1741639648016,0.06250126,117.77,117.73,8.55228965]
[1741639648327,0.06250126,117.77,117.73,0.05388965]
[1741639648626,8.55900126,117.77,117.74,8.4979]
[1741639649028,0.06250126,117.77,117.73,0.05388965]
[1741639649625,0.06250126,117.77,117.75,8.497]
[1741639649929,0.06250126,117.77,117.73,0.05388965]
[1741639650131,0.06250126,117.77,117.75,8.4971]
[1741639650430,0.06250126,117.77,117.73,0.05388965]
[1741639653123,54.73527374,117.76,117.73,0.05388965]
[1741639653330,58.80777374,117.76,117.73,0.05388965]
[1741639653520,63.07497374,117.76,117.73,0.05388965]
[1741639654426,0.06250126,117.77,117.73,48.03388965]
[1741639654627,0.06250126,117.77,117.73,328.39388965]
[1741639655428,0.06250126,117.77,117.76,8.4967]
[1741639655932,0.06250126,117.77,117.73,328.39388965]
[1741639657732,0.06250126,117.77,117.73,383.12916339]
[1741639658331,0.06250126,117.77,117.73,328.39388965]
[1741639662226,0.06250126,117.77,117.76,8.4967]
[1741639662643,4.0725,117.83,117.74,4.3221]
[1741639662834,4.0725,117.83,117.75,54.69380533]
[1741639663132,8.4927,117.82,117.75,58.95280533]
[1741639663533,4.0725,117.83,117.75,4.259]
[1741639663734,0.05721827,117.8,117.77,0.06338828]
[1741639663930,0.05721827,117.8,117.78,47.1]
[1741639664134,0.05721827,117.8,117.79,8.4946]
[1741639664540,0.05721827,117.8,117.78,47.1]
[1741639666431,4.2185,117.85,117.78,47.1]
[1741639666937,35.14146001,117.9,117.8,54.69380533]
[1741639666938,89.83526534,117.9,117.8,54.69380533]
[1741639667138,4.4409,117.89,117.81,280.24]
[1741639667337,4.4409,117.89,117.82,47.06]
[1741639667639,0.0617857,117.87,117.84,0.06264158]
[1741639668138,0.0617857,117.87,117.85,8.4899]
[1741639668340,0.0617857,117.87,117.84,0.06264158]
[1741639668538,0.0617857,117.87,117.85,8.4902]
[1741639668732,0.0617857,117.87,117.84,0.06264158]
[1741639669840,0.0617857,117.87,117.85,8.4899]
[1741639670134,0.0617857,117.87,117.84,0.06264158]
[1741639670636,8.4899,117.86,117.84,0.06264158]
[1741639671034,0.0617857,117.87,117.84,0.06264158]
[1741639671840,4.2220857,117.87,117.84,0.06264158]
[1741639673637,8.4902,117.85,117.84,0.06264158]
[1741639674341,8.4898,117.86,117.84,0.06264158]
[1741639674744,0.0617857,117.87,117.84,0.06264158]
[1741639675938,8.4895,117.86,117.84,0.06264158]
[1741639676438,0.0617857,117.87,117.84,0.06264158]
[1741639676939,8.5510857,117.87,117.84,8.55324158]
[1741639677337,0.0617857,117.87,117.84,8.55324158]
[1741639677745,8.4896,117.86,117.84,0.06264158]
[1741639678235,8.4902,117.85,117.84,0.06264158]
[1741639679443,0.0617857,117.87,117.84,0.06264158]
[1741639679635,0.0617857,117.87,117.84,8.55304158]
[1741639680044,8.5509857,117.87,117.84,8.55304158]
[1741639680239,0.0617857,117.87,117.85,8.4901]
[1741639680439,8.5509857,117.87,117.84,0.06264158]
[1741639680642,0.0617857,117.87,117.84,0.06264158]
[1741639681045,8.4901,117.86,117.84,0.06264158]
[1741639681244,0.0617857,117.87,117.84,8.55324158]
[1741639681548,8.5509857,117.87,117.84,8.55324158]
[1741639681937,0.0617857,117.87,117.84,0.06264158]
[1741639683445,8.5510857,117.87,117.84,0.06264158]
[1741639683843,0.0617857,117.87,117.84,0.06264158]
[1741639684044,8.4897,117.86,117.84,0.06264158]
[1741639684246,0.0617857,117.87,117.84,0.06264158]
[1741639684542,8.5505857,117.87,117.84,0.06264158]
[1741639684750,0.0617857,117.87,117.84,0.06264158]
[1741639685547,8.4902,117.85,117.84,0.06264158]
[1741639686446,0.0617857,117.87,117.84,0.06264158]
[1741639687151,0.0617857,117.87,117.84,8.55304158]
[1741639687452,0.0617857,117.87,117.84,0.06264158]
[1741639687753,0.0617857,117.87,117.86,8.4895]
[1741639688048,0.0617857,117.87,117.84,0.06264158]
[1741639689158,0.0617857,117.87,117.86,8.4895]
[1741639689348,4.1553,117.95,117.86,44.86]
[1741639689543,12.5522,117.95,117.86,44.86]
[1741639689852,8.4863,117.91,117.86,44.86]
[1741639690049,12.5522,117.95,117.86,44.86]
[1741639690652,12.5522,117.95,117.85,4.2066]
[1741639690653,0.0210035,117.92,117.89,0.05765855]
[1741639690858,8.4871,117.9,117.89,0.05765855]
[1741639691648,0.0210035,117.92,117.89,0.05765855]
[1741639691851,0.0210035,117.92,117.89,8.54445855]
[1741639692052,0.0210035,117.92,117.89,0.05765855]
[1741639692349,0.0210035,117.92,117.89,44.79765855]
[1741639692655,0.0210035,117.92,117.89,0.05765855]
[1741639692850,8.4866,117.9,117.89,0.05765855]
[1741639693554,8.4863,117.91,117.89,8.54485855]
[1741639694957,8.5065035,117.92,117.89,0.05765855]
[1741639695355,0.0210035,117.92,117.89,0.05765855]
[1741639695553,0.0210035,117.92,117.91,8.4859]
[1741639697960,8.5065035,117.92,117.9,52.9062]
[1741639698157,8.5065035,117.92,117.9,44.42]
[1741639698358,0.0210035,117.92,117.89,0.05765855]
[1741639698557,8.4866,117.9,117.89,0.05765855]
[1741639698860,0.0210035,117.92,117.89,8.54495855]
[1741639699559,8.4862,117.91,117.89,0.05765855]
[1741639700057,8.4866,117.9,117.89,0.05765855]
[1741639700863,12.8904,117.91,117.89,0.05765855]
[1741639701057,4.4039,117.91,117.89,0.05765855]
[1741639701360,8.4866,117.9,117.89,0.05765855]
[1741639702360,8.4893,117.87,117.85,44.06]
[1741639702760,8.5845,117.91,117.85,44.06]
[1741639703162,33.6291396,117.94,117.85,44.06]
[1741639703353,8.6764,117.94,117.85,44.06]
[1741639703557,0.05576453,117.91,117.88,8.54196217]
[1741639703862,0.05576453,117.91,117.88,0.05426217]
[1741639704258,0.05576453,117.91,117.89,8.4869]
[1741639704563,0.05576453,117.91,117.9,8.0]
[1741639704955,0.05576453,117.91,117.88,0.05426217]
[1741639705160,8.4872,117.9,117.88,0.05426217]
[1741639705559,0.05576453,117.91,117.88,0.05426217]
[1741639706360,8.54196453,117.91,117.88,0.05426217]
[1741639706561,0.05576453,117.91,117.88,0.05426217]
[1741639706970,0.05576453,117.91,117.9,8.4866]
[1741639707265,0.05576453,117.91,117.9,52.2666]
[1741639708066,46.8456404,117.97,117.91,8.4853]
[1741639708360,8.4836,117.95,117.9,43.78]
[1741639708561,8.4836,117.95,117.91,8.4856]
[1741639708768,46.8456404,117.97,117.9,43.78]
[1741639709264,0.02289752,117.95,117.92,0.05389538]
[1741639709466,8.50619752,117.95,117.92,0.05389538]
[1741639709663,0.02289752,117.95,117.92,0.05389538]
[1741639710467,8.4845,117.93,117.92,0.05389538]
[1741639711866,8.4841,117.94,117.92,0.05389538]
[1741639712068,0.02289752,117.95,117.92,0.05389538]
[1741639712369,8.4845,117.93,117.92,0.05389538]
[1741639713057,0.02289752,117.95,117.92,0.05389538]
[1741639714064,0.02289752,117.95,117.92,8.53879538]
[1741639714762,8.4841,117.94,117.92,8.53879538]
[1741639714963,0.02289752,117.95,117.92,0.05389538]
[1741639715269,33.65203712,117.95,117.84,224.6291396]
[1741639715563,9.33965938,117.94,117.87,43.06]
[1741639715768,38.53749898,117.93,117.85,43.04]
[1741639715970,4.90835938,117.92,117.85,43.04]
[1741639716270,8.4875,117.89,117.86,8.4892]
[1741639716471,8.4875,117.89,117.87,0.05878469]
[1741639716663,0.05914987,117.9,117.87,0.05878469]
[1741639718558,0.05914987,117.9,117.89,8.4874]
[1741639718770,21.0649,117.97,117.89,42.84]
[1741639718972,4.9090508,117.96,117.89,51.327]
[1741639719173,8.4859,117.91,117.89,42.84]
[1741639719469,4.1009,117.97,117.89,42.84]
[1741639719670,4.91059094,117.96,117.89,42.84]
[1741639719871,4.91059094,117.95,117.92,0.05735177]
[1741639720064,4.1009,117.97,117.92,0.05735177]
[1741639720260,4.91072975,117.96,117.92,0.05735177]
[1741639720464,4.91072975,117.95,117.92,0.05735177]
[1741639720766,4.1009,117.97,117.92,0.05735177]
[1741639721367,8.4828,117.96,117.93,51.2841]
[1741639721771,4.1009,117.97,117.93,51.2841]
[1741639721969,8.4829,117.96,117.93,51.2841]
[1741639722161,8.4829,117.96,117.94,8.4836]
[1741639722666,8.4829,117.96,117.93,42.85955539]
[1741639722972,8.4822,117.97,117.93,42.85955539]
[1741639723269,8.4822,117.97,117.94,8.4834]
[1741639723472,4.3595,118.0,117.93,42.85955539]
[1741639723664,8.4811,117.98,117.93,42.85955539]
[1741639723871,8.4811,117.98,117.93,47.24065539]
[1741639724466,8.4811,117.98,117.96,8.4823]
[1741639724974,8.1169,118.02,117.96,0.06003481]
[1741639725271,12.189,118.02,117.96,0.06003481]
[1741639725464,8.4813,117.98,117.96,0.06003481]
[1741639726569,12.189,118.02,117.96,8.54223481]
[1741639726770,4.91107089,118.01,117.96,0.06003481]
[1741639727373,4.91107089,118.01,117.96,8.54203481]
[1741639727775,8.4806,117.99,117.96,8.54203481]
[1741639728174,12.189,118.02,117.96,8.54203481]
[1741639728475,8.4812,117.98,117.96,8.54203481]
[1741639728671,12.189,118.02,117.96,8.54203481]
[1741639728866,4.90983355,118.01,117.96,0.06003481]
[1741639729069,80.57897315,118.0,117.96,3.481e-05]
[1741639729275,4.90983355,117.99,117.96,3.481e-05]
[1741639729575,4.90983355,117.98,117.96,3.481e-05]
[1741639729870,4.90983355,117.97,117.96,3.481e-05]
[1741639730069,4.90983355,117.99,117.96,3.481e-05]
[1741639730381,29.46166136,117.97,117.96,3.481e-05]
[1741639730671,25.88989491,117.97,117.88,41.92]
[1741639730864,20.98006136,117.94,117.87,41.94]
[1741639731574,75.25746136,117.96,117.87,62.92006136]
[1741639731876,0.06043318,117.93,117.9,0.05447504]
[1741639732278,0.06043318,117.93,117.9,8.54087504]
[1741639732478,0.06043318,117.93,117.9,0.05447504]
[1741639733375,8.54533318,117.93,117.9,8.54077504]
[1741639734077,0.06043318,117.93,117.91,8.4857]
[1741639734275,0.06043318,117.93,117.9,0.05447504]
[1741639734478,8.4859,117.91,117.9,0.05447504]
[1741639734679,0.06043318,117.93,117.9,0.05447504]
[1741639734876,8.4856,117.92,117.9,0.05447504]
[1741639735580,0.06043318,117.93,117.9,8.54077504]
[1741639736076,8.54523318,117.93,117.9,8.54077504]
[1741639736278,0.06043318,117.93,117.91,41.46]
[1741639736577,4.3588,118.0,117.91,49.8941]
[1741639736776,38.47857284,117.99,117.91,49.8941]
[1741639737079,8.4835,117.95,117.91,49.8941]
[1741639737283,4.3588,118.0,117.92,8.4848]
[1741639737473,46.3783292,117.99,117.91,41.46]
[1741639737673,38.47598008,117.98,117.93,8.4842]
[1741639737984,4.8983292,117.97,117.91,41.46]
[1741639738177,8.4828,117.96,117.94,8.4837]
[1741639738581,4.3588,118.0,117.94,8.4837]
[1741639738879,0.05728898,117.96,117.95,49.903]
[1741639739175,77.04943126,118.01,117.95,41.42]
[1741639739476,4.8964222,118.0,117.95,41.42]
[1741639739684,77.04943126,118.01,117.95,41.42]
[1741639739879,13.37698468,118.0,117.96,8.4817]
[1741639740183,45.28183127,118.03,117.97,0.05378519]
[1741639740382,8.4802,117.99,117.97,0.05378519]
[1741639740682,45.28183127,118.03,117.97,0.05378519]
[1741639740873,8.4809,117.98,117.97,0.05378519]
[1741639741582,45.28183127,118.03,117.97,0.05378519]
[1741639741982,4.89580558,118.02,117.98,8.4808]
[1741639742180,4.89580558,118.02,117.97,0.05378519]
[1741639742181,4.89580558,118.01,117.97,0.05378519]
[1741639742379,4.89580558,118.0,117.97,0.05378519]
[1741639742582,33.57765088,118.03,117.97,8.53528519]
[1741639742787,4.89471809,118.02,117.97,8.53528519]
[1741639742987,4.89471809,118.01,117.97,8.53528519]
[1741639743181,8.4787,118.02,117.98,8.4808]
[1741639743386,4.89936396,118.01,117.95,41.42]
[1741639743684,4.2813,118.04,117.99,0.06358416]
[1741639744991,8.4778,118.03,118.0,8.4793]
[1741639745390,4.2813,118.04,117.99,41.10358416]
[1741639746488,8.4783,118.02,117.99,49.58348416]
[1741639746688,4.2813,118.04,117.99,41.10358416]
[1741639747389,74.61765088,118.09,117.99,41.10358416]
[1741639747585,4.89732713,118.08,118.0,33.57765088]
[1741639747893,4.89732713,118.08,118.03,0.05921007]
[1741639748195,45.72925088,118.09,118.03,0.05921007]
[1741639748391,4.89655983,118.08,118.03,0.05921007]
[1741639748587,8.4766,118.04,118.03,0.05921007]
[1741639749391,74.61765088,118.07,117.97,4.0201]
[1741639749589,4.89155753,118.06,117.97,4.0201]
[1741639750290,4.89155753,118.06,117.99,8.4797]
[1741639750590,0.06021039,118.03,118.0,41.10392012]
[1741639750783,12.1516,118.09,118.02,8.478]
[1741639751590,12.1516,118.09,118.03,8.4772]
[1741639751787,12.1516,118.09,118.01,4.0797]
[1741639751987,8.475,118.07,118.04,0.0652732]
[1741639752188,12.1516,118.09,118.04,0.0652732]
[1741639752588,8.4752,118.06,118.04,0.0652732]
[1741639754594,12.1516,118.09,118.04,0.0652732]
[1741639754990,8.0646,118.09,118.04,0.0652732]
[1741639755291,8.474,118.08,118.04,41.0852732]
[1741639755489,41.02,118.12,118.04,41.02]
[1741639755698,8.4734,118.09,118.06,8.4747]
[1741639755888,53.5487,118.13,118.04,74.59765088]
[1741639756091,12.5287,118.13,118.06,33.63397303]
[1741639756293,11.70418039,118.16,118.08,33.57765088]
[1741639756589,138.97243332,118.18,118.08,33.57765088]
[1741639756590,81.03696883,118.18,118.09,325.0613]
[1741639756793,8.4683,118.16,118.12,8.4704]
[1741639757296,81.03696883,118.18,118.13,0.06129925]
[1741639757896,114.61461971,118.18,118.13,0.06129925]
[1741639758091,8.4694,118.14,118.13,0.06129925]
[1741639758292,74.59765088,118.16,118.09,320.74]
[1741639758491,0.06210305,118.15,118.09,320.74]
[1741639758790,0.06210305,118.15,118.06,74.59765088]
[1741639758997,74.59765088,118.16,118.06,74.59765088]
[1741639759196,8.4725,118.1,118.06,49.4948]
[1741639759398,0.06204195,118.12,118.1,0.06127899]
[1741639759696,74.59765088,118.16,118.06,41.02]
[1741639759898,8.4719,118.11,118.1,0.05847742]
[1741639761903,0.05475395,118.12,118.1,0.05847742]
[1741639762895,0.05475395,118.12,118.1,74.6361283]
[1741639763197,0.05475395,118.12,118.1,41.05847742]
[1741639764696,0.05475395,118.12,118.11,8.4715]
[1741639764892,0.05475395,118.12,118.1,41.05847742]
[1741639765699,8.52575395,118.12,118.1,41.05847742]
[1741639765896,0.05475395,118.12,118.1,0.05847742]
[1741639766202,8.4739,118.08,118.05,53.8884]
[1741639766396,33.57765088,118.11,118.04,284.0791]
[1741639766602,42.36785088,118.11,118.04,284.0791]
[1741639766800,8.7902,118.11,118.04,317.65675088]
[1741639766999,8.7902,118.11,118.05,40.98]
[1741639767397,8.7902,118.11,118.07,0.06255072]
[1741639767602,0.0568524,118.09,118.07,0.06255072]
[1741639767804,0.0568524,118.09,118.08,8.4737]
[1741639768102,40.98,118.17,118.07,0.06255072]
[1741639768302,8.5078,118.18,118.08,33.57765088]
[1741639768502,8.5078,118.18,118.1,33.57765088]
[1741639768903,8.5078,118.18,118.11,8.2843]
[1741639769098,0.05492051,118.15,118.13,0.05902008]
[1741639769507,0.05492051,118.15,118.14,8.4694]
[1741639769998,49.4878,118.21,118.13,41.03902008]
[1741639770194,8.5078,118.21,118.13,41.03902008]
[1741639770392,8.5078,118.21,118.14,33.57765088]
[1741639770898,8.5078,118.21,118.13,40.98]
[1741639771197,42.08545088,118.21,118.16,0.05652475]
[1741639771405,0.02615021,118.18,118.16,0.05652475]
[1741639771806,8.4672,118.17,118.16,0.05652475]
[1741639772802,0.02615021,118.18,118.16,0.05652475]
[1741639773510,8.4672,118.17,118.16,0.05652475]
[1741639774215,0.02615021,118.18,118.16,0.05652475]
[1741639774712,0.02615021,118.18,118.11,279.5]
[1741639775109,8.4677,118.17,118.11,279.5]
[1741639775408,33.57765088,118.19,118.13,8.4701]
[1741639775608,33.57765088,118.19,118.11,279.5]
[1741639775808,0.06119904,118.17,118.15,0.06330098]
[1741639776208,8.4699,118.14,118.11,279.5]
[1741639776417,33.57765088,118.17,118.11,279.5]
[1741639776820,15.93868039,118.25,118.16,33.57765088]
[1741639777008,15.93868039,118.25,118.17,45.1004]
[1741639777214,15.93868039,118.25,118.23,8.4627]
[1741639777415,15.93868039,118.25,118.24,40.98]
[1741639777715,16.00139836,118.25,118.24,40.98]
[1741639778017,18.54139836,118.25,118.16,40.96]
[1741639778219,33.57765088,118.23,118.17,8.4669]
[1741639778420,8.4637,118.22,118.16,40.96]
[1741639778613,74.53765088,118.21,118.13,287.5141]
[1741639778818,4.3912,118.2,118.13,279.38]
[1741639779022,33.57765088,118.19,118.12,1.69319336]
[1741639779319,0.05355742,118.17,118.14,0.06452697]
[1741639779513,8.4687,118.15,118.11,40.96]
[1741639779717,33.57765088,118.17,118.11,40.96]
[1741639780616,8.4691,118.15,118.11,40.96]
[1741639780821,8.53036748,118.15,118.13,0.06322187]
[1741639781010,0.06126748,118.15,118.13,0.06322187]
[1741639781324,8.4694,118.14,118.13,0.06322187]
[1741639781523,0.06126748,118.15,118.13,0.06322187]
[1741639781922,8.53006748,118.15,118.13,0.06322187]
[1741639782117,0.06126748,118.15,118.13,0.06322187]
[1741639782520,8.4694,118.14,118.13,0.06322187]
[1741639783020,0.06126748,118.15,118.13,0.06322187]
[1741639783225,8.53036748,118.15,118.13,0.06322187]
[1741639783528,0.06126748,118.15,118.13,0.06322187]
[1741639784514,0.06126748,118.15,118.13,41.02322187]
[1741639788619,8.53056748,118.15,118.13,41.02322187]
[1741639788824,0.06126748,118.15,118.13,41.02322187]
[1741639789027,0.06126748,118.15,118.13,49.49272187]
[1741639789726,8.4694,118.14,118.13,41.02322187]
[1741639790026,8.4694,118.14,118.13,0.06322187]
[1741639790426,8.53026748,118.15,118.13,0.06322187]
[1741639792527,8.53026748,118.15,118.13,8.53332187]
[1741639792728,0.06126748,118.15,118.13,0.06322187]
[1741639792928,8.4694,118.14,118.13,0.06322187]
[1741639794228,0.06126748,118.15,118.13,0.06322187]
[1741639794425,8.53036748,118.15,118.13,0.06322187]
[1741639794629,0.06126748,118.15,118.14,40.96]
[1741639794826,0.06126748,118.15,118.14,49.4294]
[1741639795032,0.06126748,118.15,118.14,40.96]
[1741639795830,0.06126748,118.15,118.13,0.06322187]
[1741639796031,0.06126748,118.15,118.13,41.02322187]
[1741639796430,0.06126748,118.15,118.13,49.49272187]
[1741639796829,0.06126748,118.15,118.13,41.02322187]
[1741639797132,0.06126748,118.15,118.14,8.4694]
[1741639798132,0.06126748,118.15,118.13,49.49302187]
[1741639799234,0.06126748,118.15,118.13,41.02322187]
[1741639799435,0.06126748,118.15,118.14,8.4694]
[1741639799830,0.06126748,118.15,118.13,49.49292187]
[1741639800032,0.06126748,118.15,118.13,41.02322187]
[1741639800836,0.06126748,118.15,118.14,8.4694]
[1741639801138,0.06126748,118.15,118.13,41.02322187]
[1741639801437,0.06126748,118.15,118.14,8.4694]
[1741639801835,168.22821093,118.26,118.14,36.11765088]
[1741639802033,4.92054604,118.23,118.14,33.57765088]
[1741639802337,4.92054604,118.22,118.15,279.36]
[1741639802533,4.91914032,118.21,118.15,287.8283]
[1741639802742,88.92009128,118.24,118.15,320.3]
[1741639802929,0.05413402,118.19,118.17,0.06326603]
[1741639803133,4.92013328,118.22,118.17,0.06326603]
[1741639803327,0.05854457,118.19,118.17,0.06326603]
[1741639803536,8.52484457,118.19,118.17,0.06326603]
[1741639803732,0.05854457,118.19,118.17,0.06326603]
[1741639804139,8.4665,118.18,118.17,0.06326603]
[1741639805537,0.05854457,118.19,118.17,0.06326603]
[1741639805738,8.52464457,118.19,118.17,0.06326603]
[1741639805936,0.05854457,118.19,118.17,0.06326603]
[1741639806138,8.4665,118.18,118.17,0.06326603]
[1741639806344,0.05854457,118.19,118.17,0.06326603]
[1741639807035,0.05854457,118.19,118.18,8.4665]
[1741639807237,8.4633,118.23,118.17,0.06326603]
[1741639807436,8.4968,118.24,118.17,4.10706603]
[1741639807640,8.4968,118.24,118.19,8.4654]
[1741639810345,0.05333434,118.15,118.13,0.06050845]
[1741639813746,8.52233434,118.15,118.13,0.06050845]
[1741639814045,0.05333434,118.15,118.13,0.06050845]
[1741639815345,8.52233434,118.15,118.13,0.06050845]
[1741639815642,0.05333434,118.15,118.13,0.06050845]
[1741639815839,0.05333434,118.15,118.13,8.53030845]
[1741639816040,0.05333434,118.15,118.13,0.06050845]
[1741639817047,8.52233434,118.15,118.13,0.06050845]
[1741639817859,0.05333434,118.15,118.13,0.06050845]
[1741639819050,0.05333434,118.15,118.13,8.53030845]